fUSD/lending_fUSD_20251225
["ID","MTS","AMOUNT","RATE_DAILY","PERIOD"]
[399792963,1766680244647,-500.0,0.00016438,2]
[399792965,1766680244662,-500.0,0.00016438,2]
[399792966,1766680244672,-500.0,0.00016438,2]
[399792967,1766680244681,-500.0,0.00016438,2]
[399792968,1766680244692,-500.0,0.00016438,2]
[399792969,1766680244702,-201.00272712,0.00016438,2]
[399792970,1766680244714,-500.0,0.00016438,2]
[399792971,1766680244725,-500.0,0.00016438,2]
[399792972,1766680244735,-500.0,0.00016438,2]
[399792973,1766680244747,-500.0,0.00016438,2]
[399792974,1766680244757,-500.0,0.00016438,2]
[399792976,1766680244769,-500.0,0.00016438,2]
[399792977,1766680244780,-500.0,0.00016438,2]
[399792978,1766680244791,-500.0,0.00016438,2]
[399792979,1766680244801,-500.0,0.00016438,2]
[399792980,1766680244812,-500.0,0.00016438,2]
[399792981,1766680244823,-500.0,0.00016438,2]
[399792982,1766680244833,-500.0,0.00016438,2]
[399792983,1766680244844,-500.0,0.00016438,2]
[399792984,1766680244855,-500.0,0.00016438,2]
[399792985,1766680244865,-500.0,0.00016438,2]
[399792987,1766680244876,-500.0,0.00016438,2]
[399792988,1766680244887,-500.0,0.00016438,2]
[399792989,1766680244898,-500.0,0.00016438,2]
[399792990,1766680244909,-500.0,0.00016438,2]
[399792991,1766680244920,-393.06796271,0.00016438,2]
[399792992,1766680244931,-500.0,0.00016438,2]
[399792993,1766680244943,-500.0,0.00016438,2]
[399792994,1766680244954,-500.0,0.00016438,2]
[399792995,1766680244965,-500.0,0.00016438,2]
[399792997,1766680244975,-500.0,0.00016438,2]
[399792998,1766680244986,-500.0,0.00016438,2]
[399792999,1766680244998,-500.0,0.00016438,2]
[399793000,1766680245008,-500.0,0.00016438,2]
[399793001,1766680245019,-500.0,0.00016438,2]
[399793002,1766680245029,-500.0,0.00016438,2]
[399793003,1766680245044,-500.0,0.00016438,2]
[399793004,1766680245055,-500.0,0.00016438,2]
[399793005,1766680245065,-622.96768999,0.00016438,2]
[399793006,1766680245076,-500.0,0.00016438,2]
[399793008,1766680245086,-500.0,0.00016438,2]
[399793009,1766680245096,-500.0,0.00016438,2]
[399793010,1766680245107,-500.0,0.00016438,2]
[399793011,1766680245118,-500.0,0.00016438,2]
[399793012,1766680245129,-500.0,0.00016438,2]
[399793013,1766680245140,-500.0,0.00016438,2]
[399793014,1766680245151,-372.96768999,0.00016438,2]
[399793015,1766680245165,-500.0,0.00016438,2]
[399793016,1766680245177,-500.0,0.00016438,2]
[399793017,1766680245188,-636.63076666,0.00016438,2]
[399793018,1766680245199,-636.63076666,0.00016438,2]
[399793019,1766680245210,-636.63076666,0.00016438,2]
[399793020,1766680245221,-636.63076666,0.00016438,2]
[399793021,1766680245234,-150.0,0.00016438,2]
[399793022,1766680245246,-716.0,0.00016438,2]
[399793023,1766680245258,-809.0,0.00016438,2]
[399793024,1766680245270,-800.0,0.00016438,2]
[399793025,1766680245280,-150.0,0.0001644,2]
[399793026,1766680245292,-150.0,0.00016443,2]
[399793030,1766680245608,-335.0,0.0001645,2]
[399793032,1766680245619,-2966.52528577,0.00016459,2]
[399793033,1766680245630,-150.0,0.00016459,2]
[399793034,1766680245640,-150.0,0.00016461,2]
[399793035,1766680245650,-293.15348985,0.00016465,2]
[399793036,1766680245661,-500.0,0.00016465,2]
[399793037,1766680245676,-150.0,0.00016466,2]
[399793038,1766680245687,-3174.0,0.0001647,2]
[399793039,1766680245699,-150.0,0.00016472,2]
[399793040,1766680245709,-150.0,0.00016473,2]
[399793041,1766680245720,-999.0,0.00016476,3]
[399793043,1766680245732,-150.0,0.00016477,2]
[399793044,1766680245743,-150.0,0.00016481,2]
[399793045,1766680245753,-150.0,0.00016487,2]
[399793046,1766680245764,-150.0,0.00016488,2]
[399793047,1766680245775,-500.0,0.00016493,2]
[399793048,1766680245786,-150.0,0.00016493,2]
[399793049,1766680245798,-150.0,0.00016501,2]
[399793050,1766680245810,-150.0,0.00016501,2]
[399793052,1766680245821,-150.0,0.00016511,2]
[399793053,1766680245832,-150.0,0.00016512,2]
[399793054,1766680245844,-150.0,0.00016518,2]
[399793055,1766680245856,-150.0,0.00016519,2]
[399793056,1766680245866,-500.0,0.0001652,2]
[399793057,1766680245882,-150.0,0.00016521,2]
[399793058,1766680245893,-150.0,0.00016521,2]
[399793059,1766680245904,-150.0,0.00016523,2]
[399793060,1766680245915,-150.0,0.00016523,2]
[399793061,1766680245926,-432.0,0.00016523,2]
[399793062,1766680245937,-1271.446,0.00016523,2]
[399793063,1766680245948,-1198.0,0.00016523,2]
[399793064,1766680245959,-912.0,0.00016523,2]
[399793066,1766680245978,-1610.0,0.00016523,2]
[399793067,1766680245989,-618.307,0.00016523,2]
[399793068,1766680246000,-3459.0,0.00016523,2]
[399793069,1766680246011,-150.0,0.00016541,2]
[399793070,1766680246022,-10740.75582801,0.00016545,2]
[399793071,1766680246034,-150.0,0.00016547,2]
[399793072,1766680246045,-500.0,0.00016548,2]
[399793073,1766680246056,-150.0,0.00016548,2]
[399793074,1766680246067,-150.0,0.00016552,2]
[399793076,1766680246078,-150.0,0.00016562,2]
[399793078,1766680246092,-150.0,0.00016562,2]
[399793080,1766680246103,-150.0,0.00016562,2]
[399793081,1766680246113,-2966.52528577,0.00016569,2]
[399793082,1766680246123,-150.0,0.00016575,2]
[399793083,1766680246134,-500.0,0.00016575,2]
[399793084,1766680246144,-150.0,0.00016575,2]
[399793085,1766680246155,-150.0,0.00016576,2]
[399793086,1766680246169,-150.0,0.00016579,2]
[399793087,1766680246180,-150.0,0.00016582,2]
[399793088,1766680246190,-150.0,0.00016587,2]
[399793090,1766680246202,-150.0,0.00016591,2]
[399793091,1766680246212,-358.86034089,0.000166,2]
[399793092,1766680246223,-150.0,0.00016602,2]
[399793093,1766680246235,-500.0,0.00016602,2]
[399793094,1766680246245,-150.0,0.00016603,2]
[399793095,1766680246257,-150.0,0.00016604,2]
[399793096,1766680246267,-150.0,0.00016606,2]
[399793097,1766680246279,-150.0,0.00016622,2]
[399793098,1766680246289,-150.0,0.00016622,2]
[399793100,1766680246299,-150.0,0.00016626,2]
[399793101,1766680246310,-500.0,0.0001663,2]
[399793102,1766680246320,-150.0,0.0001663,2]
[399793103,1766680246330,-150.0,0.00016631,2]
[399793104,1766680246340,-150.0,0.00016635,2]
[399793105,1766680246352,-150.0,0.00016643,2]
[399793106,1766680246361,-150.0,0.00016647,2]
[399793107,1766680246371,-150.0,0.00016647,2]
[399793108,1766680246382,-500.0,0.00016657,2]
[399793109,1766680246392,-150.0,0.00016658,2]
[399793110,1766680246402,-8034.10363769,0.0001666,2]
[399793111,1766680246413,-150.0,0.00016663,2]
[399793112,1766680246423,-10740.75582801,0.00016663,2]
[399793113,1766680246434,-150.0,0.00016664,2]
[399793115,1766680246444,-150.0,0.0001667,2]
[399793116,1766680246455,-150.0,0.00016677,2]
[399793117,1766680246465,-150.0,0.00016677,2]
[399793118,1766680246475,-2966.52528577,0.0001668,2]
[399793119,1766680246486,-150.0,0.00016683,2]
[399793120,1766680246496,-218.80351721,0.00016685,2]
[399793121,1766680246506,-150.0,0.00016685,2]
[399793122,1766680246516,-150.0,0.00016687,2]
[399793123,1766680246527,-150.0,0.00016689,2]
[399793124,1766680246538,-150.0,0.00016693,2]
[399793125,1766680246548,-595.37131296,0.00016697,2]
[399793126,1766680246558,-5148.0067256,0.000167,2]
[399793127,1766680246568,-150.0,0.00016703,2]
[399793128,1766680246579,-1278.0,0.00016707,2]
[399793129,1766680246589,-150.0,0.0001671,2]
[399793130,1766680246599,-150.0,0.00016712,2]
[399793131,1766680246610,-150.0,0.00016715,2]
[399793132,1766680246621,-150.0,0.00016723,2]
[399793133,1766680246632,-150.0,0.00016723,2]
[399793134,1766680246643,-150.0,0.00016729,2]
[399793135,1766680246653,-2626.0,0.00016731,2]
[399793136,1766680246664,-1000.0,0.00016731,2]
[399793137,1766680246674,-1000.0,0.00016731,2]
[399793138,1766680246684,-150.0,0.00016732,2]
[399793140,1766680246694,-188.55950753,0.00016735,2]
[399793141,1766680246705,-150.0,0.0001674,2]
[399793142,1766680246715,-150.0,0.00016744,2]
[399793143,1766680246725,-150.0,0.00016744,2]
[399793144,1766680246735,-150.0,0.00016749,2]
[399793145,1766680246747,-150.0,0.00016752,2]
[399793146,1766680246757,-150.0,0.00016764,2]
[399793147,1766680246767,-150.0,0.00016767,2]
[399793148,1766680246777,-150.0,0.00016774,2]
[399793149,1766680246788,-150.0,0.00016774,2]
[399793150,1766680246799,-150.0,0.0001678,2]
[399793151,1766680246810,-150.0,0.00016781,2]
[399793152,1766680246821,-10740.75582801,0.00016782,2]
[399793153,1766680246831,-150.0,0.00016782,2]
[399793154,1766680246842,-150.0,0.00016784,2]
[399793155,1766680246852,-150.0,0.00016786,2]
[399793156,1766680246863,-150.0,0.00016789,2]
[399793157,1766680246874,-2626.0,0.0001679,2]
[399793158,1766680246884,-2966.52528577,0.0001679,2]
[399793159,1766680246895,-150.0,0.00016795,2]
[399793160,1766680246904,-308.973,0.00016795,2]
[399793161,1766680246914,-4366.148,0.00016795,2]
[399793162,1766680246925,-179.41345087,0.00016798,2]
[399793163,1766680246936,-150.0,0.00016804,2]
[399793164,1766680246947,-150.0,0.00016811,2]
[399793166,1766680246958,-150.0,0.00016816,2]
[399793167,1766680246968,-150.0,0.00016822,2]
[399793168,1766680246979,-150.0,0.00016825,2]
[399793169,1766680246990,-150.0,0.00016828,2]
[399793170,1766680247001,-150.0,0.00016832,2]
[399793171,1766680247011,-150.0,0.00016832,2]
[399793172,1766680247022,-1923.0,0.00016834,2]
[399793173,1766680247033,-150.0,0.0001684,2]
[399793174,1766680247043,-150.0,0.00016845,2]
[399793175,1766680247053,-150.0,0.00016849,2]
[399793176,1766680247065,-150.0,0.0001685,2]
[399793177,1766680247075,-150.0,0.00016859,2]
[399793178,1766680247085,-200.0,0.00016863,2]
[399793179,1766680247095,-200.0,0.00016864,2]
[399793180,1766680247106,-200.0,0.00016864,2]
[399793181,1766680247117,-150.0,0.00016865,2]
[399793182,1766680247127,-150.0,0.00016865,2]
[399793183,1766680247138,-150.0,0.00016868,2]
[399793184,1766680247148,-150.0,0.00016869,2]
[399793185,1766680247160,-150.0,0.00016877,2]
[399793187,1766680247174,-25000.0,0.00016882,3]
[399793188,1766680247184,-150.0,0.00016883,2]
[399793189,1766680247195,-150.0,0.00016885,2]
[399793190,1766680247207,-150.0,0.00016886,2]
[399793191,1766680247217,-25000.0,0.00016891,3]
[399793192,1766680247228,-150.0,0.00016898,2]
[399793193,1766680247240,-25000.0,0.000169,3]
[399793194,1766680247250,-25000.0,0.000169,3]
[399793195,1766680247260,-2966.52528577,0.000169,2]
[399793196,1766680247271,-1946.48766576,0.000169,2]
[399793197,1766680247281,-10740.75582801,0.000169,2]
[399793198,1766680247292,-170.28248417,0.000169,2]
[399793199,1766680247303,-179.41345087,0.000169,2]
[399793200,1766680247313,-2243.26450517,0.000169,2]
[399793201,1766680247324,-4786.06106062,0.000169,2]
[399793202,1766680247334,-6397.42488084,0.000169,2]
[399793203,1766680247344,-156.81485744,0.000169,2]
[399793204,1766680247354,-789.11969302,0.000169,2]
[399793205,1766680247364,-150.0,0.00016901,2]
[399793206,1766680247374,-150.0,0.00016904,2]
[399793207,1766680247384,-150.0,0.00016905,2]
[399793208,1766680247395,-150.0,0.00016907,2]
[399793209,1766680247405,-150.0,0.00016918,2]
[399793210,1766680247416,-150.0,0.00016926,2]
[399793211,1766680247426,-150.0,0.00016928,2]
[399793212,1766680247446,-150.0,0.00016932,2]
[399793213,1766680247460,-150.0,0.00016935,2]
[399793214,1766680247472,-150.0,0.00016944,2]
[399793215,1766680247483,-150.0,0.00016946,2]
[399793216,1766680247494,-150.0,0.00016947,2]
[399793217,1766680247505,-1923.0,0.00016956,2]
[399793218,1766680247516,-1000.0,0.00016957,2]
[399793219,1766680247526,-1000.0,0.00016957,2]
[399793220,1766680247537,-1000.0,0.00016957,2]
[399793221,1766680247548,-1000.0,0.00016957,2]
[399793222,1766680247559,-916.272,0.00016957,2]
[399793223,1766680247569,-1000.0,0.00016957,2]
[399793224,1766680247580,-150.0,0.00016957,2]
[399793225,1766680247590,-166.66,0.00016958,2]
[399793226,1766680247601,-150.0,0.00016959,2]
[399793227,1766680247611,-150.0,0.00016966,2]
[399793228,1766680247622,-500.0,0.0001697,2]
[399793229,1766680247632,-800.78551976,0.0001697,2]
[399793230,1766680247642,-1000.0,0.0001697,2]
[399793231,1766680247652,-1000.0,0.0001697,2]
[399793232,1766680247662,-1000.0,0.0001697,2]
[399793233,1766680247673,-1000.0,0.0001697,2]
[399793234,1766680247683,-796.056,0.0001697,2]
[399793235,1766680247693,-500.0,0.00016973,2]
[399793236,1766680247704,-150.0,0.00016973,2]
[399793237,1766680247715,-220.68608515,0.00016986,2]
[399793238,1766680247725,-212.19015448,0.00016986,2]
[399793239,1766680247736,-234.65030173,0.00016986,2]
[399793240,1766680247746,-250.03401255,0.00016986,2]
[399793241,1766680247756,-210.28251087,0.00016986,2]
[399793242,1766680247767,-171.10828189,0.00016986,2]
[399793243,1766680247778,-218.37681677,0.00016986,2]
[399793244,1766680247789,-235.18371064,0.00016986,2]
[399793245,1766680247800,-199.77046782,0.00016986,2]
[399793246,1766680247810,-195.8030936,0.00016986,2]
[399793247,1766680247820,-176.41435158,0.00016986,2]
[399793248,1766680247830,-270.36367616,0.00016986,2]
[399793249,1766680247840,-284.4666085,0.00016986,2]
[399793250,1766680247851,-245.69368063,0.00016986,2]
[399793251,1766680247861,-2000.0,0.00016989,2]
[399793252,1766680247871,-2000.0,0.00016989,2]
[399793253,1766680247881,-2000.0,0.00016989,2]
[399793254,1766680247891,-2000.0,0.00016989,2]
[399793255,1766680247901,-1142.56862705,0.0001699,2]
[399793256,1766680247912,-1142.56862705,0.0001699,2]
[399793257,1766680247923,-1142.56862705,0.0001699,2]
[399793258,1766680247933,-1060.87558749,0.00016999,5]
[399793259,1766680247944,-33550.8610724,0.00016999,2]
[399793260,1766680247955,-20427.79681,0.00016999,2]
[399793261,1766680247965,-150.0,0.00016999,2]
[399793262,1766680247975,-150.0,0.00016999,2]
[399793263,1766680247985,-167.21477836,0.00016999,2]
[399793264,1766680247996,-1621.0485847,0.00016999,2]
[399793265,1766680248007,-3940.2908269,0.00016999,2]
[399793266,1766680248017,-500.0,0.00016999,2]
[399793267,1766680248028,-500.0,0.00016999,2]
[399793268,1766680248038,-500.0,0.00016999,2]
[399793269,1766680248049,-500.0,0.00016999,2]
[399793270,1766680248059,-500.0,0.00016999,2]
[399793271,1766680248070,-159.59367143,0.00016999,2]
[399793272,1766680248081,-300.0,0.00016999,2]
[399793273,1766680248092,-7139.5454729,0.00016999,2]
[399793274,1766680248103,-158.0330375,0.00016999,2]
[399793275,1766680248113,-300.0,0.00016999,2]
[399793276,1766680248123,-666.0,0.00016999,2]
[399793277,1766680248134,-500.0,0.00016999,2]
[399793278,1766680248144,-500.0,0.00016999,2]
[399793279,1766680248154,-500.0,0.00016999,2]
[399793280,1766680248168,-500.0,0.00016999,2]
[399793281,1766680248178,-500.0,0.00016999,2]
[399793282,1766680248189,-500.0,0.00016999,2]
[399793283,1766680248201,-500.0,0.00016999,2]
[399793284,1766680248217,-500.0,0.00016999,2]
[399793285,1766680248227,-500.0,0.00016999,2]
[399793286,1766680248238,-500.0,0.00016999,2]
[399793287,1766680248249,-500.0,0.00016999,2]
[399793288,1766680248258,-500.0,0.00016999,2]
[399793289,1766680248268,-500.0,0.00016999,2]
[399793290,1766680248278,-500.0,0.00016999,2]
[399793292,1766680248288,-500.0,0.00016999,2]
[399793293,1766680248298,-600.74186122,0.00016999,2]
[399793294,1766680248308,-300.0,0.00016999,2]
[399793295,1766680248318,-666.0,0.00016999,2]
[399793296,1766680248328,-8764.0,0.00017,2]
[399793297,1766680248338,-5081480.36688203,0.00017,2]
[399793299,1766680248583,-2306.95635147,0.00017,2]
[399793300,1766680248595,-1689.45337527,0.00017,2]
[399793301,1766680248607,-683.86250023,0.00017,2]
[399793302,1766680248619,-442.095,0.00017,2]
[399793303,1766680248630,-533.22389115,0.00017,2]
[399793305,1766680248779,-3411.37260033,0.00016523,2]
[399793306,1766680248793,-1395.62739967,0.00016523,2]
[399793307,1766680248806,-2286.27342133,0.00017,2]
[399793308,1766680248821,-267.470874,0.00017,2]
[399793309,1766680248836,-1288.95483898,0.00017,2]
[399793310,1766680248850,-2630.64669746,0.00017,2]
[399793311,1766680248865,-460.71535664,0.00017,2]
[399793312,1766680248879,-1715.1,0.00017,2]
[399793313,1766680248895,-466.7936093,0.00017,2]
[399793314,1766680248911,-254.94538776,0.00017,2]
[399793315,1766680248926,-1612.92171078,0.00017,2]
[399793316,1766680248954,-12.89521923,0.00017,2]
[399793318,1766680249092,-3511.20327443,0.00017,2]
[399793319,1766680249107,-692.33650997,0.00017,2]
[399793320,1766680249121,-281.178,0.00017,2]
[399793321,1766680249136,-109142.84125138,0.00017,2]
[399793322,1766680249151,-2684.4358811,0.00017,2]
[399793323,1766680249169,-4400.33003597,0.00017,2]
[399793324,1766680249184,-2652.81855684,0.00017,2]
[399793325,1766680249198,-3067.597645,0.00017,2]
[399793327,1766680249219,-379.12000001,0.00017,2]
[399793328,1766680249234,-155099.4651302,0.00017,2]
[399793329,1766680249247,-6154.21511341,0.00017,2]
[399793469,1766680289110,500.0,0.000119,2]
[399794315,1766680400828,500.0,0.00030913,120]
[399794377,1766680408563,500.0,0.000119,2]
[399794472,1766680420998,600.0,0.00030913,120]
[399794484,1766680421980,600.0,0.00030913,120]
[399795047,1766680483204,1852.0,0.0003287,120]
[399795056,1766680484031,373.0,0.0003287,120]
[399795079,1766680486310,346.0,0.0003287,120]
[399795080,1766680487138,390.0,0.0003287,120]
[399795357,1766680529941,500.0,0.000119,2]
[399795433,1766680543004,161.76167916,0.0003287,120]
[399795437,1766680545175,248.0,0.0003287,120]
[399795770,1766680603841,1382.0,0.0003287,120]
[399795771,1766680604629,1100.0,0.0003287,120]
[399795775,1766680605485,976.0,0.0003287,120]
[399795778,1766680605952,459.19,0.00032876,120]
[399795791,1766680608249,170.0,0.0003287,120]
[399795800,1766680609143,266.0,0.0003287,120]
[399795801,1766680609939,200.0,0.0003287,120]
[399795802,1766680610749,266.0,0.0003287,120]
[399795803,1766680611550,253.0,0.0003287,120]
[399795806,1766680612386,231.0,0.0003287,120]
[399795807,1766680613176,225.0,0.0003287,120]
[399795808,1766680613215,-153.924,0.0001236,2]
[399795809,1766680613247,-250.0,0.00012404,2]
[399795810,1766680613287,-1000.0,0.00012448,2]
[399795811,1766680613321,-250.0,0.00013293,2]
[399795812,1766680613354,-250.0,0.00013596,2]
[399795813,1766680613394,-378.70190931,0.00013599,2]
[399795814,1766680613426,-214.03542936,0.00013699,2]
[399795815,1766680613459,-195.0,0.00014357,2]
[399795816,1766680613492,-712.104928,0.00014936,2]
[399795817,1766680613523,-378.70190929,0.00015011,2]
[399795818,1766680613556,-600.0,0.00015016,2]
[399795819,1766680613587,-600.0,0.00015068,2]
[399795820,1766680613617,-195.0,0.00015068,2]
[399795821,1766680613648,-195.0,0.00015199,2]
[399795822,1766680613679,-1852.42,0.00015407,2]
[399795823,1766680613712,-250.22364808,0.00015598,2]
[399795824,1766680613726,-49.77635192,0.00015598,2]
[399795825,1766680613737,-104.14764808,0.00015599,2]
[399795826,1766680613754,-250.0,0.00015599,2]
[399795827,1766680613766,-845.85235192,0.00015599,2]
[399795828,1766680613777,-154.14764808,0.00015599,2]
[399795829,1766680613790,-145.85235192,0.00015599,2]
[399795830,1766680613800,-104.14764808,0.000156,2]
[399795831,1766680613812,-250.0,0.000156,2]
[399795832,1766680613828,-378.70190931,0.000156,2]
[399795833,1766680613845,-214.03542936,0.000156,2]
[399795834,1766680613866,-195.0,0.000156,2]
[399795835,1766680613879,-712.104928,0.000156,2]
[399795836,1766680613896,-214.88008525,0.000156,2]
[399795837,1766680613907,-163.82182404,0.000156,2]
[399795838,1766680613919,-136.16817596,0.000156,2]
[399795839,1766680613930,-463.83182404,0.00015877,2]
[399795840,1766680613943,-600.0,0.00015877,2]
[399795841,1766680613956,-195.0,0.00015877,2]
[399795842,1766680613970,-195.0,0.00015877,2]
[399795843,1766680613983,-1852.42,0.00015877,2]
[399795844,1766680613996,-300.0,0.00015877,2]
[399795845,1766680614087,196.0,0.0003287,120]
[399795846,1766680614895,238.0,0.0003287,120]
[399795847,1766680616205,451.0,0.0003287,120]
[399795998,1766680662420,1085.09063255,0.0003287,120]
[399796001,1766680664657,375.0,0.0003287,120]
[399796002,1766680665476,259.0,0.0003287,120]
[399796003,1766680666267,258.0,0.0003287,120]
[399796006,1766680667086,467.0,0.0003287,120]
[399796011,1766680667893,157.0,0.0003287,120]
[399796221,1766680723455,197.0,0.0003287,120]
[399796225,1766680724300,455.0,0.0003287,120]
[399796232,1766680726135,205.4,7.847e-05,2]
[399796578,1766680784339,210.51397778,0.0003287,120]
[399797558,1766680972274,500.0,0.00032876,120]
[399797559,1766680972510,500.0,0.00032876,120]
[399797560,1766680972879,413.52,0.00032876,120]
[399797612,1766680988830,339.82679004,0.00032877,120]
[399797685,1766681000597,525.882179,0.00030913,120]
[399798229,1766681262563,166.66,0.00014522,2]
[399798230,1766681262776,166.66,0.00014828,2]
[399798231,1766681329519,240.0,0.00032713,120]
[399798232,1766681346565,155.40870097,0.00032876,120]
[399798234,1766681407906,496.03185919,0.00032877,120]
[399798236,1766681416201,5148.0067256,0.000151,2]
[399798237,1766681428304,189.35095465,0.00015043,2]
[399798242,1766681431733,-166.66,0.00015134,2]
[399798243,1766681431744,-1599.20379233,0.00015138,2]
[399798244,1766681431758,-900.79620767,0.00015138,2]
[399798245,1766681431769,-195.0,0.00015143,2]
[399798246,1766681431780,-300.0,0.00015153,2]
[399798247,1766681431790,-2500.0,0.00015163,2]
[399798248,1766681431800,-2500.0,0.00015163,2]
[399798249,1766681431814,-2500.0,0.00015163,2]
[399798250,1766681431827,-600.0,0.00015172,2]
[399798251,1766681431839,-195.0,0.00015211,2]
[399798252,1766681431850,-300.0,0.00015216,2]
[399798253,1766681431862,-300.0,0.00015216,2]
[399798254,1766681431873,-300.0,0.00015216,2]
[399798255,1766681431885,-500.0,0.00015227,2]
[399798256,1766681431896,-1200.0,0.00015273,2]
[399798257,1766681431907,-600.0,0.00015274,2]
[399798258,1766681431918,-600.0,0.00015274,2]
[399798259,1766681431929,-600.0,0.00015274,2]
[399798260,1766681431940,-300.0,0.00015287,2]
[399798261,1766681431951,-150.0,0.00015288,2]
[399798262,1766681431963,-150.0,0.00015288,2]
[399798272,1766681432268,-150.0,0.00015288,2]
[399798273,1766681432282,-150.0,0.00015288,2]
[399798274,1766681432308,-150.0,0.00015288,2]
[399798275,1766681432320,-150.0,0.00015288,2]
[399798276,1766681432331,-150.0,0.00015288,2]
[399798277,1766681432342,-150.0,0.00015288,2]
[399798278,1766681432353,-150.0,0.00015288,2]
[399798279,1766681432365,-150.0,0.00015288,2]
[399798280,1766681432377,-150.0,0.00015288,2]
[399798282,1766681432388,-150.0,0.00015288,2]
[399798283,1766681432399,-150.0,0.00015288,2]
[399798284,1766681432414,-150.0,0.00015288,2]
[399798286,1766681432425,-150.0,0.00015288,2]
[399798289,1766681432436,-195.0,0.00015337,2]
[399798291,1766681432446,-150.0,0.00015401,2]
[399798293,1766681432457,-166.66,0.00015439,2]
[399798295,1766681432468,-150.0,0.00015442,2]
[399798297,1766681432478,-150.0,0.00015458,2]
[399798299,1766681432497,-1882.54,0.00015495,2]
[399798301,1766681432507,-150.0,0.00015506,2]
[399798303,1766681432518,-150.0,0.00015514,2]
[399798305,1766681432530,-1074.12,0.00015525,2]
[399798307,1766681432541,-150.0,0.0001553,2]
[399798309,1766681432552,-150.0,0.0001553,2]
[399798311,1766681432564,-150.0,0.00015597,2]
[399798313,1766681432575,-150.0,0.00015627,2]
[399798315,1766681432586,-150.0,0.00015627,2]
[399798317,1766681432597,-150.0,0.00015627,2]
[399798318,1766681432608,-150.0,0.00015627,2]
[399798319,1766681432619,-164.75,0.00015665,2]
[399798320,1766681432630,-150.0,0.00015673,2]
[399798321,1766681432641,-205.4,0.00015694,2]
[399798322,1766681432652,-150.0,0.00015712,2]
[399798323,1766681432666,-500.0,0.00015737,2]
[399798324,1766681432677,-500.0,0.00015737,2]
[399798325,1766681432687,-500.0,0.00015737,2]
[399798326,1766681432699,-500.0,0.00015737,2]
[399798327,1766681432710,-545.31607751,0.00015737,2]
[399798328,1766681432725,-500.0,0.00015737,2]
[399798329,1766681432736,-500.0,0.00015737,2]
[399798330,1766681432746,-500.0,0.00015737,2]
[399798331,1766681432757,-500.0,0.00015737,2]
[399798332,1766681432767,-500.0,0.00015737,2]
[399798333,1766681432778,-150.0,0.00015741,2]
[399798334,1766681432789,-166.66,0.00015745,2]
[399798335,1766681432801,-150.0,0.00015751,2]
[399798336,1766681432812,-150.0,0.00015773,2]
[399798337,1766681432822,-150.0,0.00015773,2]
[399798338,1766681432834,-9999.99,0.00015777,2]
[399798339,1766681432850,-150.99,0.00015777,2]
[399798340,1766681432861,-150.0,0.00015797,2]
[399798341,1766681432872,-150.0,0.00015854,2]
[399798342,1766681432883,-150.0,0.00015854,2]